bitfinex/quotes_ETHUSD_20251012
["timestamp","ask_amount","ask_price","bid_price","bid_amount"]
[1760290768200,0.001,4144.6,4144.5,2.41283628]
[1760290768699,0.001,4144.6,4144.4,2.41288507]
[1760290768903,0.001,4144.6,4144.2,2.41299721]
[1760290769097,0.001,4144.6,4144.5,2.41283628]
[1760290769581,0.001,4144.6,4144.4,2.4128841]
[1760290769790,0.1042,4144.6,4143.7,2.41330212]
[1760290769987,0.001,4144.6,4144.4,2.41288808]
[1760290770186,0.001,4144.6,4144.5,2.41283628]
[1760290771905,0.1042,4144.6,4144.0,2.41309518]
[1760290772106,0.2516921,4144.5,4143.9,2.41318037]
[1760290772315,0.2516921,4144.5,4144.0,2.41311473]
[1760290772681,0.1032,4144.4,4143.0,0.2212]
[1760290772904,0.1032,4144.4,4143.0,2.63489232]
[1760290773105,0.1032,4144.4,4143.0,0.2212]
[1760290773307,2.0232,4144.4,4143.8,2.41324083]
[1760290773580,2.0232,4144.4,4143.9,2.4131839]
[1760290773806,0.57207762,4144.3,4143.9,2.4131839]
[1760290774007,0.1032,4144.2,4143.8,2.41322803]
[1760290774397,0.1032,4144.1,4143.8,2.41322803]
[1760290774612,0.1032,4144.0,4143.8,2.41322803]
[1760290774909,0.1032,4144.0,4143.8,2.41323102]
[1760290775121,0.1207,4144.1,4143.8,2.41323102]
[1760290775411,0.1034,4143.9,4143.8,2.41323102]
[1760290775606,0.1034,4143.9,4143.1,0.002]
[1760290775808,0.1207,4144.1,4143.1,0.002]
[1760290776014,0.1207,4144.1,4143.8,2.4132153]
[1760290777414,0.1207,4144.1,4143.7,2.4132948]
[1760290777616,0.1207,4144.1,4143.1,0.002]
[1760290777617,0.66946222,4144.1,4143.1,0.002]
[1760290777814,8.36452088,4143.8,4143.1,0.002]
[1760290777998,2.41324546,4143.8,4143.2,2.41359197]
[1760290778199,2.0234,4144.0,4143.1,0.002]
[1760290778200,0.1034,4143.7,4143.1,0.002]
[1760290778516,4.43671855,4143.7,4143.1,2.41565069]
[1760290778685,4.43671855,4143.7,4143.1,0.002]
[1760290778896,0.44367186,4143.6,4143.1,2.41564334]
[1760290779294,0.1034,4143.5,4143.1,2.41564334]
[1760290779527,0.1034,4143.5,4143.1,0.002]
[1760290779716,0.1034,4143.4,4143.1,2.41563939]
[1760290781422,0.44367186,4143.6,4143.2,2.41355959]
[1760290781627,0.54707186,4143.6,4143.2,2.41355959]
[1760290781828,0.1034,4143.5,4143.2,2.41355959]
[1760290782025,0.12,4143.4,4143.1,2.41563225]
[1760290782425,0.12,4143.4,4143.2,2.41359335]
[1760290782598,0.2234,4143.4,4143.2,2.41359335]
[1760290783131,0.2234,4143.4,4143.1,0.002]
[1760290783424,1.92,4144.2,4143.2,0.448]
[1760290783624,0.12,4144.0,4143.2,0.448]
[1760290783826,2.41302109,4144.2,4143.5,2.41340904]
[1760290784024,2.41297061,4144.3,4143.6,2.41335846]
[1760290784608,1.92,4144.3,4143.4,2.41347685]
[1760290784810,0.1045,4144.6,4143.3,0.448]
[1760290785118,2.51728607,4144.6,4143.3,0.448]
[1760290785314,0.25172861,4144.5,4143.3,0.448]
[1760290785728,4.3329429,4144.4,4143.7,2.4132682]
[1760290785934,1.92,4144.4,4143.8,2.41323818]
[1760290786129,0.001,4144.2,4143.9,2.41313171]
[1760290786330,0.001,4144.2,4144.1,2.41306918]
[1760290787539,0.001,4144.2,4144.0,2.41311898]
[1760290787743,0.001,4144.2,4142.3,2.41608266]
[1760290787905,0.001,4144.2,4143.2,2.41359335]
[1760290788109,0.001,4144.2,4144.0,2.41308113]
[1760290789641,0.001,4144.2,4143.8,2.41323375]
[1760290789830,0.001,4144.2,4144.0,2.41309969]
[1760290790807,0.1045,4144.2,4143.7,2.41326034]
[1760290791013,0.001,4144.2,4143.9,2.41316983]
[1760290791312,0.1931,4144.2,4143.9,2.41316983]
[1760290792324,0.1931,4144.2,4143.8,2.41323192]
[1760290792525,0.001,4144.2,4143.8,2.41323192]
[1760290793338,0.001,4144.2,4143.6,2.41335229]
[1760290793722,0.121,4144.2,4143.9,2.41317708]
[1760290794035,0.121,4144.2,4143.8,2.41323886]
[1760290794458,0.121,4144.2,4143.7,2.4132942]
[1760290794825,0.47629069,4144.1,4143.6,0.12]
[1760290795143,0.12,4143.6,4143.2,2.41358593]
[1760290795339,0.2229,4143.5,4143.2,2.41358593]
[1760290796215,0.2229,4143.4,4143.1,0.002]
[1760290796423,0.12,4143.6,4143.3,2.41351862]
[1760290796624,0.12,4143.6,4143.1,0.002]
[1760290796817,0.12,4143.6,4143.3,2.41348894]
[1760290797019,0.12,4143.6,4143.1,0.002]
[1760290797213,0.001,4144.2,4144.0,2.41308382]
[1760290797530,0.001,4144.2,4144.1,2.41306918]
[1760290798245,0.001,4144.2,4143.5,0.5872]
[1760290798548,0.001,4144.2,4143.9,0.4672]
[1760290798733,0.001,4144.2,4144.1,2.41306918]
[1760290801054,0.001,4144.2,4144.1,3.00026918]
[1760290801420,0.001,4144.2,4144.1,2.53306918]
[1760290801766,0.001,4144.2,4143.6,0.12]
[1760290801924,0.001,4144.2,4143.6,2.53334657]
[1760290802122,0.001,4144.2,4143.6,0.37333466]
[1760290802422,0.001,4144.2,4143.8,0.12]
[1760290802658,0.001,4144.2,4144.1,2.41306918]
[1760290803150,0.001,4144.2,4143.8,0.12]
[1760290803352,0.001,4144.2,4144.0,2.41312176]
[1760290803654,0.001,4144.2,4144.0,2.41512176]
[1760290803950,0.1,4144.2,4144.0,0.002]
[1760290804153,21.86852918,4144.1,4144.0,0.002]
[1760290804351,14.09094918,4144.1,4144.0,0.002]
[1760290804653,12.40716818,4144.1,4144.0,0.002]
[1760290805258,10.02420718,4144.1,4144.0,0.002]
[1760290805552,1.92,4144.1,4144.0,0.002]
[1760290806038,0.001,4144.2,4144.1,2.41306918]
[1760290806368,0.001,4144.2,4144.1,3.1684961]
[1760290809670,0.001,4145.1,4145.0,2.41254523]
[1760290809830,0.1665,4148.0,4144.2,3.04661095]
[1760290809831,0.09672922,4147.4,4144.9,1.92]
[1760290810037,0.09672922,4147.4,4146.4,2.41167326]
[1760290810238,0.1003,4147.3,4145.5,2.41225425]
[1760290810462,0.1665,4148.0,4145.4,0.4672]
[1760290810463,0.1003,4147.2,4145.7,2.41213549]
[1760290810773,2.41167163,4146.6,4145.7,2.41209036]
[1760290810945,5.87005,4146.4,4145.0,0.4672]
[1760290811145,4.33167559,4146.5,4145.0,0.4672]
[1760290811365,1.92,4146.2,4145.6,2.41219509]
[1760290811549,0.6336,4146.3,4145.0,0.4672]
[1760290811741,1.13608007,4146.2,4145.4,2.41226025]
[1760290811941,1.13608007,4146.2,4145.5,2.41224973]
[1760290811942,1.92,4146.1,4145.5,2.41224973]
[1760290812259,0.1122,4145.6,4142.3,17.53373854]
[1760290812567,0.6336,4145.2,4143.5,0.4692]
[1760290812772,3.04617202,4145.0,4144.2,2.41298184]
[1760290812939,1.92,4144.8,4144.0,2.41507609]
[1760290813268,4.33277807,4144.6,4144.0,0.002]
[1760290813487,2.41277807,4144.6,4144.0,0.002]
[1760290813689,2.41284374,4144.5,4144.0,0.002]
[1760290813850,2.5536,4144.1,4144.0,0.002]
[1760290814036,0.6336,4144.2,4144.0,0.002]
[1760290814236,5.099018,4144.1,4144.0,0.002]
[1760290814555,3.36816308,4144.1,4144.0,0.002]
[1760290814757,16.88993226,4144.1,4144.0,0.002]
[1760290814961,15.87946626,4144.1,4144.0,0.002]
[1760290815971,29.47165826,4144.1,4144.0,0.002]
[1760290816345,8.85604626,4144.1,4144.0,0.002]
[1760290816754,11.01472026,4144.1,4144.0,0.002]
[1760290816961,14.47171826,4144.1,4144.0,0.002]
[1760290817964,25.59476326,4144.1,4144.0,0.002]
[1760290818984,28.53793126,4144.1,4144.0,0.002]
[1760290819684,27.90433126,4144.1,4144.0,0.002]
[1760290819881,30.78513826,4144.1,4144.0,0.002]
[1760290820489,28.65119826,4144.1,4144.0,0.002]
[1760290820869,31.39930826,4144.1,4144.0,0.002]
[1760290821670,0.6336,4143.3,4143.1,0.002]
[1760290821966,45.23646889,4143.2,4143.1,0.002]
[1760290822174,45.33576889,4143.2,4143.1,0.002]
[1760290822362,45.43262107,4143.2,4143.1,0.002]
[1760290822790,45.43262107,4143.2,4142.3,0.002]
[1760290822791,30.28804913,4142.9,4142.3,0.002]
[1760290823102,32.50944013,4142.9,4142.3,0.002]
[1760290823395,32.84717748,4142.4,4142.3,0.002]
[1760290823688,29.53032248,4142.4,4142.3,0.002]
[1760290823905,5.06695948,4142.4,4142.3,0.002]
[1760290824122,29.77686348,4142.4,4142.3,0.002]
[1760290824323,30.59142656,4142.4,4142.3,0.002]
[1760290824928,5.88152256,4142.4,4142.3,0.002]
[1760290825112,34.47034656,4142.4,4142.3,0.002]
[1760290825301,31.21124556,4142.4,4142.3,0.002]
[1760290825802,29.76289856,4142.4,4142.3,0.002]
[1760290826113,33.61225356,4142.4,4142.3,0.002]
[1760290826502,15.669699,4140.4,4139.6,2.41568025]
[1760290826709,0.2937,4140.3,4138.9,2.72123779]
[1760290826894,1.92,4140.1,4138.9,0.30517995]
[1760290827097,1.92,4140.2,4138.9,0.30517995]
[1760290827298,0.6336,4140.1,4139.3,2.41584959]
[1760290827497,1.92,4140.0,4139.2,0.4474]
[1760290827761,0.72671161,4140.5,4139.3,0.4474]
[1760290827940,0.099,4141.8,4141.3,2.41469668]
[1760290828087,0.099,4142.3,4141.6,2.41447205]
[1760290828420,0.099,4142.3,4141.5,2.41457176]
[1760290828592,0.099,4142.3,4141.3,0.24146967]
[1760290828792,0.099,4142.3,4141.9,2.4143429]
[1760290829030,1.92,4141.9,4140.4,0.2322]
[1760290829237,2.64633333,4142.8,4139.8,0.4474]
[1760290829238,16.366432,4141.7,4139.8,0.4474]
[1760290829400,4.841464,4141.1,4139.8,0.4474]
[1760290829728,0.6336,4141.2,4140.9,2.4149331]
[1760290829891,2.5536,4141.5,4140.7,2.41499501]
[1760290830220,2.5536,4141.5,4140.6,2.41508959]
[1760290830590,2.5536,4141.5,4140.8,2.41494186]
[1760290830790,2.5536,4141.5,4140.9,2.41490336]
[1760290831026,0.1008,4141.6,4140.1,0.6796]
[1760290831212,2.5536,4141.5,4140.2,2.41534225]
[1760290831411,2.5536,4141.3,4140.3,0.30949423]
[1760290831629,0.12,4140.5,4140.3,2.41527188]
[1760290831835,0.12,4140.5,4140.4,2.41522558]
[1760290834150,0.12,4140.5,4139.8,0.5674]
[1760290834311,0.1008,4140.6,4139.1,0.4494]
[1760290834515,0.1008,4140.6,4139.9,2.41551673]
[1760290834716,0.1008,4140.6,4140.1,2.41536945]
[1760290835016,0.1008,4140.6,4139.2,0.28654245]
[1760290835017,0.1008,4140.6,4139.9,2.4154878]
[1760290835212,0.1008,4140.6,4140.0,2.41540275]
[1760290835542,0.1008,4140.6,4140.1,2.41538055]
[1760290835853,0.1008,4140.6,4139.9,2.41550534]
[1760290836025,0.1008,4140.6,4140.1,2.41535255]
[1760290836228,0.54437374,4140.6,4140.0,2.41544281]
[1760290836409,0.6336,4140.9,4139.2,0.28654245]
[1760290836717,1.92,4141.1,4140.6,2.41507197]
[1760290836919,2.5536,4141.2,4140.6,2.41507197]
[1760290837248,0.6336,4141.3,4140.1,0.2322]
[1760290837546,0.6336,4141.1,4140.8,2.41498811]
[1760290837751,2.0208,4141.4,4140.6,2.41510516]
[1760290837752,0.6336,4141.3,4140.6,2.41510516]
[1760290837916,0.6336,4141.3,4140.7,2.41499358]
[1760290838246,0.2887,4142.2,4140.7,0.24149936]
[1760290838430,15.55618776,4143.0,4140.7,0.24149936]
[1760290838431,0.2887,4142.4,4141.6,2.41452487]
[1760290838630,0.72640896,4142.5,4142.0,2.41427533]
[1760290838829,2.51287719,4142.8,4142.0,2.41427533]
[1760290838830,0.099,4142.8,4142.0,2.41427533]
[1760290839047,4.33388629,4142.7,4141.9,2.41433386]
[1760290839251,2.62792214,4142.7,4142.0,2.41428692]
[1760290839454,1.92,4142.6,4142.0,2.41428692]
[1760290839652,1.92,4142.6,4141.2,2.86212088]
[1760290839653,0.1249,4143.2,4142.4,2.41400556]
[1760290839855,0.1249,4143.2,4141.8,0.4474]
[1760290840054,0.099,4143.5,4143.1,2.41365161]
[1760290840055,0.82523311,4143.5,4143.1,2.41365161]
[1760290840248,0.1948,4144.0,4141.6,2.41449259]
[1760290840249,0.2941,4144.0,4142.5,0.6796]
[1760290840563,0.001,4144.1,4142.6,0.4474]
[1760290840729,2.202757,4143.8,4142.9,2.41375764]
[1760290840925,2.202757,4143.8,4143.5,2.41341156]
[1760290841126,0.001,4144.1,4143.8,2.41324339]
[1760290841326,0.001,4144.1,4144.0,2.41312741]
[1760290841772,0.001,4144.1,4143.8,2.41319378]
[1760290842833,0.001,4144.1,4143.9,2.41318438]
[1760290843430,0.001,4144.1,4143.2,0.4474]
[1760290843431,0.001,4144.1,4143.8,2.41323264]
[1760290843638,0.099,4144.0,4142.6,0.4447]
[1760290843867,0.099,4144.0,4142.2,0.2322]
[1760290843868,12.973389,4143.9,4142.2,0.2322]
[1760290844142,0.12,4143.5,4143.1,2.41364466]
[1760290844847,0.12,4143.5,4143.4,2.41347685]
[1760290845452,0.12,4143.5,4143.1,0.49474395]
[1760290845656,0.12,4143.5,4143.3,2.41352507]
[1760290845856,0.12,4143.5,4143.2,2.41358538]
[1760290846058,2.41313776,4144.0,4143.2,2.41358538]
[1760290846365,2.2121,4143.8,4143.2,2.41358538]
[1760290846775,2.2121,4143.8,4141.5,0.4447]
[1760290846776,1.92,4143.4,4141.5,0.4447]
[1760290846951,0.6336,4143.3,4141.6,0.28593478]
[1760290847153,6.770825,4142.6,4141.0,0.4447]
[1760290847357,0.2921,4142.6,4141.9,2.41429266]
[1760290847557,0.2921,4142.6,4142.1,2.41421474]
[1760290847758,0.6336,4142.8,4142.3,2.41411278]
[1760290847960,0.6336,4142.8,4141.6,2.41452578]
[1760290848159,2.5536,4142.9,4142.2,2.41413432]
[1760290848371,2.5536,4142.9,4142.3,2.41410185]
[1760290848562,0.6336,4143.0,4142.3,2.41410185]
[1760290848857,0.6336,4142.8,4142.2,2.41417088]
[1760290849056,1.92,4142.6,4142.2,2.41417088]
[1760290849261,0.1,4142.5,4142.0,2.41423733]
[1760290849458,0.6336,4142.3,4140.5,0.4626]
[1760290849649,3.04743283,4142.8,4140.8,0.62970994]
[1760290849849,0.1941,4143.2,4142.0,2.41426105]
[1760290849850,0.6336,4142.6,4142.0,2.41426105]
[1760290850059,0.6336,4143.0,4142.3,2.41407015]
[1760290850258,0.6336,4143.0,4142.4,2.41405341]
[1760290850743,0.6336,4143.0,4142.3,2.41411089]
[1760290850953,2.41398746,4142.6,4140.1,2.64755501]
[1760290851175,9.096025,4142.5,4141.1,0.4626]
[1760290851343,6.450025,4142.4,4141.8,2.41439132]
[1760290851549,3.79556,4142.4,4141.2,2.414759]
[1760290851749,2.5536,4142.7,4141.3,0.4626]
[1760290851979,2.5536,4142.7,4142.1,2.41421427]
[1760290852276,2.5536,4142.7,4142.0,2.41428469]
[1760290852482,3.04749076,4142.7,4142.0,2.41428469]
[1760290852651,0.6336,4142.6,4142.1,2.41423273]
[1760290852848,0.099,4142.5,4142.1,2.41423273]
[1760290853050,0.6336,4142.6,4142.1,2.41423273]
[1760290853260,0.6336,4142.6,4140.7,1.4296]
[1760290853261,0.6336,4142.2,4140.7,1.4296]
[1760290853497,0.099,4142.5,4140.9,0.4626]
[1760290853787,0.6336,4142.9,4140.9,0.4626]
[1760290853949,0.6336,4142.9,4142.3,2.41410708]
[1760290854155,2.5536,4142.8,4142.2,2.41415931]
[1760290854696,0.6336,4143.0,4141.6,0.24145466]
[1760290854987,0.6336,4143.0,4141.3,2.41469202]
[1760290854988,9.338555,4142.5,4141.7,2.41446748]
[1760290855293,9.338555,4142.5,4141.8,2.41440764]
[1760290855294,1.92,4142.4,4141.8,2.41440764]
[1760290855495,1.92,4142.2,4141.8,2.41440397]
[1760290855698,0.099,4142.2,4141.8,2.41440397]
[1760290855996,0.12,4142.0,4141.3,0.12]
[1760290856196,0.12,4142.3,4141.6,0.12]
[1760290856501,0.12,4142.3,4142.2,2.41413297]
[1760290856655,0.099,4142.9,4142.4,2.41401875]
[1760290856656,0.12,4142.5,4142.4,2.41401875]
[1760290858169,0.12,4142.5,4142.3,2.41410677]
[1760290858496,0.12,4142.5,4142.4,2.41405948]
[1760290860702,0.12,4142.5,4142.4,3.35948297]
[1760290860988,0.12,4142.8,4142.7,2.41383584]
[1760290861177,0.001,4143.0,4142.9,2.41376813]
[1760290861719,0.001,4143.0,4142.9,2.87636813]
[1760290862149,0.001,4143.0,4142.8,2.41377444]
[1760290862294,0.001,4143.0,4142.8,2.41381485]
[1760290862637,0.001,4143.0,4142.9,2.41376813]
[1760290862842,0.001,4143.0,4142.5,2.41399692]
[1760290863195,0.001,4143.0,4142.8,2.41377081]
[1760290864022,0.001,4143.0,4142.9,2.41376813]
[1760290865631,0.001,4143.0,4142.7,2.41388263]
[1760290865632,4.424291,4143.0,4141.6,0.4626]
[1760290865796,0.1,4143.0,4142.5,2.4139682]
[1760290865999,0.1,4143.0,4142.1,0.12]
[1760290866000,0.12,4142.8,4142.1,0.12]
[1760290866437,0.001,4143.0,4140.8,0.16710994]
[1760290866438,5.807883,4142.0,4140.8,0.16710994]
[1760290866613,0.2887,4141.9,4140.7,1.4296]
[1760290866815,0.12,4141.5,4141.4,2.41464239]
[1760290867114,0.12,4141.9,4141.6,2.4144714]
[1760290867423,0.12,4141.9,4141.2,0.12]
[1760290867621,0.12,4141.9,4141.8,2.41440919]
[1760290868727,0.12,4141.9,4141.6,2.41448216]
[1760290868929,0.12,4141.9,4141.3,0.25348444]
[1760290868930,0.12,4141.9,4141.7,2.41442168]
[1760290869170,2.019,4142.3,4142.2,2.41413111]
[1760290869171,0.12,4142.3,4142.2,2.41413111]
[1760290869316,0.099,4143.8,4142.9,2.41376813]
[1760290869520,0.099,4143.8,4142.7,2.41385421]
[1760290869721,4.33336799,4143.6,4142.2,0.4626]
[1760290869964,0.001,4143.9,4142.9,2.41376813]
[1760290870130,4.33423313,4143.9,4142.9,2.41376813]
[1760290870459,2.5536,4143.8,4142.9,2.41376813]
[1760290870660,1.921,4143.9,4142.9,2.41376813]
[1760290870866,0.2921,4143.6,4142.9,2.41376813]
[1760290871040,2.2121,4143.6,4142.9,2.41376813]
[1760290871222,2.5536,4143.7,4142.9,2.41376813]
[1760290871427,3.04691661,4143.7,4142.9,2.41376813]
[1760290872053,0.6336,4143.7,4142.9,2.41376813]
[1760290872420,2.5536,4143.7,4142.9,2.41376813]
[1760290872625,2.5536,4143.7,4142.5,0.4626]
[1760290872626,2.019,4143.6,4142.5,2.4139522]
[1760290872877,4.43237484,4143.6,4142.7,2.41387719]
[1760290873166,4.43237484,4143.6,4142.8,2.41379445]
[1760290873456,4.43237484,4143.6,4140.0,0.002]
[1760290873457,0.099,4142.9,4140.0,0.002]
[1760290873752,0.099,4142.9,4142.1,2.41418]
[1760290873753,0.6336,4142.8,4142.1,2.41418]
[1760290873956,0.001,4143.5,4142.7,2.41388466]
[1760290874155,0.001,4143.5,4142.9,2.41376813]
[1760290874555,0.001,4143.5,4142.9,2.87636813]
[1760290874756,0.001,4143.5,4143.4,2.41347685]
[1760290875144,0.001,4143.5,4143.4,2.87607685]
[1760290875346,0.1009,4146.0,4144.5,2.41283628]
[1760290875528,2.0321,4145.9,4144.5,2.41283628]
[1760290875731,0.1121,4145.9,4144.5,2.87543628]
[1760290875925,0.1011,4145.7,4144.5,2.87543628]
[1760290876226,0.1121,4145.9,4144.5,2.87543628]
[1760290876666,0.1246,4146.3,4144.5,2.87543628]
[1760290876878,0.114,4145.9,4144.5,2.87543628]
[1760290877175,2.41173531,4146.4,4144.5,2.87543628]
[1760290877176,0.47526604,4147.9,4144.5,2.87543628]
[1760290877341,0.2234,4147.3,4144.9,2.41260344]
[1760290877539,5.015505,4147.8,4144.7,1.92]
[1760290877774,5.015505,4147.8,4144.6,2.54705399]
[1760290877775,0.2244,4147.8,4145.0,1.92]
[1760290877949,0.1907,4148.7,4147.7,2.41092416]
[1760290878140,0.26010361,4148.6,4147.7,2.41092416]
[1760290878345,2.18010361,4148.6,4147.6,2.4110285]
[1760290878557,2.18010361,4148.6,4147.2,0.6811]
[1760290878558,0.26010361,4148.6,4147.8,2.41091017]
[1760290878751,0.26010361,4148.6,4147.2,0.6811]
[1760290878752,0.26010361,4148.6,4147.2,3.09234881]
[1760290878957,0.1907,4148.7,4147.8,2.4109106]
[1760290879161,0.1907,4148.7,4147.2,0.6811]
[1760290879375,0.1907,4148.7,4147.2,0.8011]
[1760290879576,0.12,4148.0,4147.9,2.41081124]
[1760290879777,0.1907,4148.7,4147.3,2.41120263]
[1760290880075,0.12,4148.2,4148.1,2.41074226]
[1760290880303,4.80518952,4150.0,4148.1,0.4615]
[1760290880462,2.9289,4149.9,4148.1,0.4615]
[1760290880774,0.0999,4149.8,4148.5,2.41045643]
[1760290881077,0.0999,4149.7,4148.1,0.4615]
[1760290881246,1.92,4149.4,4148.7,2.41038699]
[1760290881551,0.44296771,4149.6,4148.2,2.4106489]
[1760290881552,15.55618776,4148.9,4148.2,2.4106489]
[1760290881751,30.0,4148.6,4147.5,0.4615]
[1760290882076,1.92,4148.7,4147.2,0.2196]
[1760290882245,0.44296771,4149.6,4147.8,2.41091663]
[1760290882575,1.92,4149.9,4148.9,2.41027605]
[1760290882775,1.92,4149.9,4147.9,0.98983914]
[1760290882776,1.92,4149.9,4149.0,2.41021061]
[1760290882942,1.92,4149.7,4149.3,2.41001252]
[1760290883152,2.830466,4149.8,4149.3,2.41001252]
[1760290883368,0.2928,4150.1,4147.1,1.92]
[1760290883574,5.31498847,4150.0,4149.5,2.40992831]
[1760290883745,1.92,4149.9,4148.8,2.41033551]
[1760290883947,4.80518952,4150.0,4147.6,15.55618776]
[1760290883948,4.80518952,4150.0,4149.9,2.40969661]
[1760290884366,4.80518952,4150.0,4149.9,2.87119661]
[1760290888586,4.80518952,4150.0,4149.6,0.4615]
[1760290888791,4.80518952,4150.0,4148.4,2.41056166]
[1760290888957,4.80518952,4150.0,4149.9,2.40969661]
[1760290889259,4.80518952,4150.0,4148.5,2.16105617]
[1760290889260,4.80518952,4150.0,4149.6,0.4615]
[1760290889465,4.80518952,4150.0,4149.8,2.40974472]
[1760290889675,4.80518952,4150.0,4149.1,0.4615]
[1760290889876,4.135059,4149.7,4148.1,0.4615]
[1760290890053,1.92,4149.5,4148.2,2.41068415]
[1760290890253,0.12,4149.4,4148.7,0.12]
[1760290890471,0.12,4149.4,4148.8,2.41032116]
[1760290890856,0.12,4149.4,4148.3,0.4615]
[1760290890857,2.4099289,4149.5,4148.6,2.41039861]
[1760290891056,2.41027338,4149.0,4148.1,2.41072898]
[1760290891359,0.12,4148.3,4147.6,0.12]
[1760290891778,0.12,4147.8,4147.1,0.12]
[1760290891985,0.12,4147.8,4147.7,2.41097475]
[1760290892299,0.12,4148.2,4147.5,0.12]
[1760290892459,1.92,4148.3,4147.3,0.4615]
[1760290892659,1.09194232,4148.3,4147.3,0.4615]
[1760290892898,0.6336,4148.5,4147.3,0.4615]
[1760290893185,4.362992,4148.5,4147.6,2.41102001]
[1760290893398,2.41064113,4148.3,4147.4,2.411128]
[1760290893689,2.41064113,4148.3,4146.8,0.6811]
[1760290893690,1.92,4148.1,4147.3,2.41120441]
[1760290893895,1.92,4148.5,4147.8,2.4109075]
[1760290894065,11.425749,4148.3,4147.3,2.41116854]
[1760290894394,11.425749,4148.3,4146.5,0.4615]
[1760290894395,1.92,4147.9,4146.5,0.4615]
[1760290894688,0.6336,4148.1,4146.5,0.4615]
[1760290894891,4.312386,4148.0,4147.2,2.41122644]
[1760290895058,0.6336,4148.1,4146.5,0.4615]
[1760290895059,0.6336,4148.1,4147.3,2.41118267]
[1760290895258,1.92,4147.9,4147.1,2.41127216]
[1760290895491,7.983489,4147.9,4147.2,2.41124115]
[1760290895695,0.1264,4147.9,4147.2,2.41124115]
[1760290895892,0.6336,4148.1,4147.2,2.41124115]
[1760290896079,1.92,4147.9,4146.5,0.4615]
[1760290896280,0.7775267,4147.9,4147.3,2.41115548]
[1760290896485,1.92,4148.0,4146.7,2.41155617]
[1760290896790,2.41045739,4148.6,4147.8,2.41090494]
[1760290896791,1.92,4148.6,4147.8,2.41090494]
[1760290896992,0.6336,4148.2,4147.8,2.4108711]
[1760290897174,3.103337,4148.7,4147.0,0.4615]
[1760290897370,0.1005,4148.8,4148.3,2.41058929]
[1760290897570,0.1005,4148.8,4147.5,2.41104414]
[1760290897571,0.20205,4148.7,4147.5,0.4615]
[1760290897771,0.1005,4148.8,4148.4,2.41055334]
[1760290897976,1.92,4148.9,4147.6,2.41103288]
[1760290897977,0.1005,4148.7,4148.3,2.41061833]
[1760290898474,0.6336,4149.0,4148.3,2.41061833]
[1760290898670,0.1005,4149.1,4147.5,0.4615]
[1760290898871,0.6336,4149.0,4148.5,2.41045174]
[1760290899210,2.41010189,4149.3,4148.6,2.41044353]
[1760290899211,0.6336,4149.3,4148.6,2.41044353]
[1760290899508,0.1929,4149.9,4148.3,0.4615]
[1760290899694,0.1929,4149.9,4148.5,2.41050982]
[1760290899897,4.363802,4149.8,4148.1,0.2196]
[1760290900098,0.6336,4149.5,4147.6,0.6811]
[1760290900311,5.787455,4149.2,4148.6,2.41044299]
[1760290900522,0.89315581,4149.1,4148.7,2.41038324]
[1760290900820,2.193396,4149.2,4148.8,2.41033092]
[1760290900980,0.1005,4149.4,4147.7,2.41097475]
[1760290900981,0.6336,4149.4,4148.9,2.41026323]
[1760290901315,5.073778,4149.5,4148.9,2.41026323]
[1760290901482,0.6336,4149.4,4148.8,2.41032742]
[1760290901686,2.5536,4149.4,4148.2,0.4615]
[1760290901886,2.475611,4149.8,4149.2,2.41005524]
[1760290902187,2.1129,4149.9,4148.1,2.41068439]
[1760290902392,4.80618952,4150.0,4149.6,2.40986762]
[1760290902581,4.80618952,4150.0,4149.3,2.4100234]
[1760290902582,0.12,4149.6,4149.5,2.4099289]
[1760290902783,8.43718952,4150.0,4148.8,2.41033551]
[1760290903114,4.80618952,4150.0,4148.8,2.41033551]
[1760290903310,4.80618952,4150.0,4149.9,2.40969661]
[1760290905388,4.80618952,4150.0,4149.9,2.86699661]
[1760290907201,0.001,4150.0,4149.9,2.86699661]
[1760290907402,0.001,4150.5,4150.4,2.40940632]
[1760290907602,0.1043,4153.4,4150.4,0.14]
[1760290907925,0.1043,4153.4,4150.7,2.40923217]
[1760290908234,0.1911,4153.6,4152.5,2.40818783]
[1760290908602,0.2946,4153.9,4152.5,2.87118783]
[1760290908928,1.92,4154.3,4152.5,2.87118783]
[1760290908929,2.40729116,4154.1,4152.5,2.87118783]
[1760290909133,0.1888,4153.9,4152.5,2.87118783]
[1760290909432,0.106,4153.7,4152.5,2.40818783]
[1760290909613,0.106,4153.7,4152.5,2.87118783]
[1760290910330,0.6336,4153.8,4152.5,2.87118783]
[1760290910516,0.106,4154.2,4152.5,2.87118783]
[1760290910849,2.40732197,4154.0,4152.5,2.87118783]
[1760290911009,2.40732197,4154.0,4151.7,2.40862507]
[1760290911010,2.40784222,4153.1,4151.1,0.463]
[1760290911210,0.1068,4153.2,4152.5,2.40818783]
[1760290911528,15.27377998,4153.6,4152.5,2.40818783]
[1760290911529,0.6336,4153.5,4152.5,2.40818783]
[1760290911735,3.04120883,4153.5,4152.5,2.40818783]
[1760290911917,0.6336,4153.5,4152.5,2.40818783]
[1760290912430,0.7404,4153.4,4152.5,2.40818783]
[1760290912632,0.6336,4153.5,4152.5,2.87118783]
[1760290912835,0.12,4152.9,4152.5,2.87118783]
[1760290913047,0.1872,4153.9,4152.5,3.43346343]
[1760290913332,2.40744777,4153.8,4152.5,2.87118783]
[1760290913634,0.6336,4153.8,4152.5,2.40818783]
[1760290913942,0.6336,4153.8,4151.5,2.40876791]
[1760290913943,0.6336,4153.3,4151.5,2.40876791]
[1760290914142,2.40784958,4153.1,4152.0,2.40845345]
[1760290914342,2.40784958,4153.1,4150.7,1.92]
[1760290914343,8.855283,4152.5,4149.5,1.43704202]
[1760290914544,0.6336,4153.3,4150.8,0.463]